bitfinex/quotes_SOLUSD_20240908
["timestamp","ask_amount","ask_price","bid_price","bid_amount"]
[1725762105007,45.0,128.4,128.34,1.5616604]
[1725762105225,61.4596,128.4,128.34,1.5616604]
[1725762107723,67.9014,128.4,128.34,1.5616604]
[1725762109328,67.9014,128.4,128.33,30.39634013]
[1725762120528,22.9014,128.43,128.35,10.39634013]
[1725762120837,22.9014,128.43,128.36,20.0]
[1725762121835,45.0,128.42,128.36,20.0]
[1725762123829,45.0,128.42,128.34,20.0]
[1725762129539,68.45,128.42,128.34,20.0]
[1725762135434,76.237,128.42,128.34,20.0]
[1725762138847,31.2375,128.41,128.34,20.0]
[1725762139042,45.0,128.4,128.34,20.0]
[1725762143241,68.45,128.41,128.34,20.0]
[1725762146462,45.0,128.41,128.34,20.0]
[1725762147652,45.0,128.42,128.34,20.0]
[1725762154444,45.0,128.42,128.35,21.9302]
[1725762154755,45.0,128.42,128.36,20.0]
[1725762165269,45.0,128.42,128.37,1.56155199]
[1725762165475,45.0,128.42,128.36,20.0]
[1725762165681,45.0,128.42,128.37,1.56155199]
[1725762165971,45.0,128.42,128.36,20.0]
[1725762166187,45.0,128.42,128.37,1.56155391]
[1725762166355,45.0,128.42,128.36,20.0]
[1725762166547,45.0,128.42,128.37,1.56153602]
[1725762166746,45.0,128.42,128.36,20.0]
[1725762166972,45.0,128.42,128.37,1.5615365]
[1725762167190,45.0,128.42,128.36,20.0]
[1725762167474,45.0,128.42,128.37,1.56153602]
[1725762167678,45.0,128.42,128.36,20.0]
[1725762167879,45.0,128.42,128.37,1.5615365]
[1725762168057,45.0,128.42,128.36,20.0]
[1725762168260,45.0,128.42,128.37,1.5615365]
[1725762168556,45.0,128.42,128.36,20.0]
[1725762168855,45.0,128.42,128.37,1.5615365]
[1725762169055,45.0,128.42,128.36,20.0]
[1725762169268,45.0,128.42,128.37,1.56153651]
[1725762169472,45.0,128.42,128.36,20.0]
[1725762169773,45.0,128.42,128.37,1.56155441]
[1725762169974,45.0,128.42,128.36,20.0]
[1725762170161,45.0,128.42,128.37,1.56153602]
[1725762170356,45.0,128.42,128.36,20.0]
[1725762170559,45.0,128.42,128.37,1.56153651]
[1725762170755,45.0,128.42,128.36,20.0]
[1725762170960,23.45,128.4,128.32,21.9335]
[1725762171156,78.18745476,128.39,128.32,21.9335]
[1725762171371,78.18745476,128.39,128.33,1.56196052]
[1725762171572,70.39815476,128.39,128.34,1.56196052]
[1725762171890,70.39815476,128.39,128.33,1.56204247]
[1725762172076,70.39815476,128.39,128.32,15.5773]
[1725762172377,70.39815476,128.39,128.29,6.3562]
[1725762172378,31.2395,128.38,128.29,21.9335]
[1725762172571,46.94837058,128.37,128.29,21.9335]
[1725762172764,46.94837058,128.37,128.3,21.56213145]
[1725762172965,46.94837058,128.37,128.31,1.56213145]
[1725762173171,46.94837058,128.37,128.3,20.0]
[1725762173487,46.94837058,128.37,128.31,1.56212636]
[1725762173774,1.94837058,128.37,128.33,16.75254013]
[1725762174077,7.7858,128.44,128.33,16.75254013]
[1725762174078,16.8857,128.45,128.34,20.0]
[1725762174253,15.0857,128.45,128.35,10.39634013]
[1725762174455,6.1038,128.46,128.38,10.39634013]
[1725762174680,15.0857,128.49,128.4,10.39634013]
[1725762174882,38.5357,128.49,128.41,35.5773]
[1725762177665,45.0,128.48,128.41,35.5773]
[1725762179982,1.94692778,128.47,128.41,35.5773]
[1725762180189,45.0,128.48,128.41,35.5773]
[1725762183372,15.0857,128.49,128.41,35.5773]
[1725762183571,1.94691256,128.48,128.41,35.5773]
[1725762184988,45.0,128.48,128.41,35.5773]
[1725762185164,1.94692467,128.47,128.41,20.0]
[1725762185363,1.94692467,128.47,128.4,20.0]
[1725762185364,61.24492467,128.47,128.4,20.0]
[1725762185569,61.24492467,128.47,128.39,20.0]
[1725762186688,53.46102467,128.47,128.39,20.0]
[1725762186884,59.298,128.47,128.39,20.0]
[1725762188400,1.9473321,128.46,128.39,20.0]
[1725762188575,45.0,128.46,128.36,20.0]
[1725762188910,7.7857,128.45,128.36,20.0]
[1725762189200,45.0,128.44,128.36,20.0]
[1725762189369,60.3113,128.44,128.35,22.5256]
[1725762190373,7.7865,128.43,128.35,16.4266]
[1725762190573,45.0,128.42,128.36,20.0]
[1725762191680,52.7869,128.42,128.36,20.0]
[1725762191974,59.301,128.42,128.36,20.0]
[1725762192496,1.94780709,128.41,128.33,20.0]
[1725762192687,51.5141,128.42,128.33,20.0]
[1725762192873,1.94814544,128.41,128.33,20.0]
[1725762193074,53.46224033,128.42,128.33,20.0]
[1725762193274,51.5141,128.42,128.33,20.0]
[1725762193479,23.1,128.39,128.33,20.0]
[1725762193680,51.5141,128.42,128.3,30.39634013]
[1725762193681,45.0,128.38,128.3,30.39634013]
[1725762193878,66.8254,128.42,128.34,10.39634013]
[1725762194200,60.3113,128.42,128.35,20.0]
[1725762194431,15.3113,128.42,128.35,20.0]
[1725762194599,6.5141,128.45,128.36,10.39634013]
[1725762194899,6.5141,128.45,128.37,20.0]
[1725762195701,1.94717619,128.44,128.37,20.0]
[1725762196379,6.5141,128.45,128.37,20.0]
[1725762197280,45.0,128.44,128.37,20.0]
[1725762212183,45.0,128.44,128.38,15.732]
[1725762212513,45.0,128.44,128.39,20.0]
[1725762212815,45.0,128.43,128.39,20.0]
[1725762212990,45.0,128.45,128.39,20.0]
[1725762213514,1.94721143,128.44,128.39,20.0]
[1725762213708,1.94721116,128.44,128.39,20.0]
[1725762213899,45.0,128.45,128.39,20.0]
[1725762214288,1.9472108,128.44,128.39,20.0]
[1725762215611,45.0,128.45,128.39,20.0]
[1725762217194,45.0,128.46,128.39,20.0]
[1725762219194,15.085,128.49,128.4,10.39634013]
[1725762219423,14.1099,128.51,128.41,35.732]
[1725762219611,23.45,128.5,128.41,35.732]
[1725762220322,22.8652,128.53,128.42,16.68424013]
[1725762220491,25.25,128.55,128.45,15.732]
[1725762220803,23.45,128.56,128.47,6.2879]
[1725762221005,23.45,128.56,128.48,20.0]
[1725762221891,23.45,128.55,128.48,20.0]
[1725762222911,22.2944063,128.57,128.48,20.0]
[1725762223105,7.779,128.55,128.48,20.0]
[1725762223423,46.94591429,128.54,128.48,20.0]
[1725762223723,52.7796,128.54,128.48,20.0]
[1725762224104,52.7796,128.54,128.46,20.0]
[1725762225717,1.9461695,128.53,128.46,20.0]
[1725762225897,22.2944063,128.57,128.47,10.39634013]
[1725762226099,30.0725063,128.57,128.48,20.0]
[1725762228129,8.6592063,128.57,128.49,21.6151]
[1725762228416,0.8811063,128.57,128.5,20.0]
[1725762230422,8.6590063,128.57,128.5,20.0]
[1725762230601,45.0,128.56,128.5,20.0]
[1725762230802,0.8811063,128.57,128.5,20.0]
[1725762235524,0.8811063,128.57,128.49,21.6151]
[1725762235728,7.7797,128.54,128.49,15.1232]
[1725762236033,45.0,128.53,128.49,15.1232]
[1725762236323,45.0,128.54,128.49,15.1232]
[1725762236533,46.94578229,128.54,128.49,15.1232]
[1725762236708,54.72558229,128.54,128.49,15.1232]
[1725762237911,52.7798,128.54,128.49,15.1232]
[1725762238302,1.9458875,128.53,128.49,15.1232]
[1725762238524,1.9458875,128.53,128.46,21.6151]
[1725762238729,1.9458875,128.53,128.47,20.0]
[1725762239610,52.7798,128.54,128.47,20.0]
[1725762240543,7.7803,128.53,128.47,20.0]
[1725762240704,45.0,128.52,128.47,20.0]
[1725762240908,52.7809,128.52,128.47,20.0]
[1725762242010,45.0,128.52,128.47,20.0]
[1725762242928,23.45,128.51,128.47,20.0]
[1725762243111,45.0,128.5,128.47,20.0]
[1725762243311,45.0,128.52,128.47,20.0]
[1725762243727,52.7809,128.52,128.47,20.0]
[1725762247737,7.7816,128.51,128.47,20.0]
[1725762247918,7.7816,128.51,128.46,15.1232]
[1725762247919,52.7821,128.5,128.46,15.1232]
[1725762248122,1.94633825,128.49,128.46,15.1232]
[1725762248434,1.94631494,128.48,128.46,15.1232]
[1725762248637,46.94631494,128.48,128.46,15.1232]
[1725762248930,45.0,128.48,128.46,15.1232]
[1725762251411,45.0,128.48,128.43,21.4948]
[1725762254048,1.94656779,128.47,128.43,21.4948]
[1725762254242,45.0,128.47,128.43,21.4948]
[1725762254711,45.0,128.48,128.43,21.4948]
[1725762257228,45.0,128.48,128.43,15.2857]
[1725762257229,52.7833,128.48,128.43,15.2857]
[1725762258145,45.0,128.48,128.43,15.2857]
[1725762258646,45.0,128.49,128.44,20.0]
[1725762261764,45.0,128.5,128.44,20.0]
[1725762263341,68.45,128.5,128.44,20.0]
[1725762264422,39.57186011,128.53,128.45,6.1617]
[1725762265044,31.2303,128.53,128.45,6.1617]
[1725762265741,45.0,128.52,128.45,6.1617]
[1725762267025,68.45,128.52,128.45,6.1617]
[1725762267928,45.0,128.52,128.45,6.1617]
[1725762269844,52.7808,128.52,128.45,6.1617]
[1725762272751,1.9460085,128.51,128.45,6.1617]
[1725762273553,52.7808,128.52,128.45,6.1617]
[1725762285655,33.17766559,128.51,128.45,6.1617]
[1725762285954,45.0,128.5,128.45,6.1617]
[1725762287669,68.45,128.5,128.45,6.1617]
[1725762288870,76.2321,128.5,128.45,6.1617]
[1725762289073,76.2321,128.5,128.43,15.2857]
[1725762289246,76.2321,128.5,128.43,16.84613363]
[1725762289448,9.72930833,128.49,128.43,15.2857]
[1725762289643,45.0,128.48,128.43,15.2857]
[1725762290763,45.0,128.48,128.43,16.84613363]
[1725762291458,45.0,128.49,128.43,15.2857]
[1725762291643,45.0,128.49,128.43,16.84613363]
[1725762292366,45.0,128.49,128.43,15.2857]
[1725762297758,52.7827,128.49,128.43,15.2857]
[1725762298956,1.94658313,128.48,128.43,15.2857]
[1725762299360,52.7827,128.49,128.43,15.2857]
[1725762299668,1.94657933,128.48,128.43,15.2857]
[1725762299866,52.7827,128.49,128.43,15.2857]
[1725762301968,45.0,128.49,128.43,15.2857]
[1725762302863,52.7821,128.5,128.43,15.2857]
[1725762303066,52.7821,128.5,128.43,16.84641863]
[1725762303455,52.7821,128.5,128.43,15.2857]
[1725762303844,45.0,128.5,128.43,15.2857]
[1725762304049,45.0,128.5,128.44,21.56059162]
[1725762304248,45.0,128.51,128.44,21.56059162]
[1725762306268,45.0,128.51,128.44,21.56059065]
[1725762308445,45.0,128.51,128.44,20.0]
[1725762308853,45.0,128.51,128.45,1.56047263]
[1725762309178,45.0,128.52,128.44,20.0]
[1725762309350,45.0,128.52,128.45,1.56045052]
[1725762309550,45.0,128.52,128.46,1.56034681]
[1725762309752,45.0,128.53,128.46,20.0]
[1725762310153,45.0,128.53,128.46,21.56033144]
[1725762312656,45.0,128.53,128.46,21.56034691]
[1725762313569,45.0,128.53,128.46,20.0]
[1725762313772,45.0,128.53,128.46,21.56032903]
[1725762315283,45.0,128.53,128.46,20.0]
[1725762315884,45.0,128.53,128.46,21.56032663]
[1725762316496,45.0,128.53,128.46,20.0]
[1725762316787,45.0,128.53,128.46,21.56032663]
[1725762317464,45.0,128.53,128.46,20.0]
[1725762329897,41.7061063,128.57,128.46,20.0]
[1725762329898,0.8811063,128.57,128.48,21.7857]
[1725762330085,0.8811063,128.57,128.5,15.7736]
[1725762330287,0.8811063,128.57,128.51,20.0]
[1725762330492,0.8811063,128.57,128.52,6.0121]
[1725762331798,0.8811063,128.57,128.54,15.7736]
[1725762332032,0.8811063,128.57,128.55,20.0]
[1725762332475,0.8811063,128.57,128.55,21.12050773]
[1725762332791,0.8811063,128.57,128.55,20.0]
[1725762333200,0.8811063,128.57,128.55,21.16753121]
[1725762333426,0.8811063,128.57,128.55,20.0]
[1725762334214,262.6724,128.66,128.56,6.0121]
[1725762334514,18.4054,128.68,128.56,6.0121]
[1725762334515,34.51816011,128.68,128.58,12.0363]
[1725762334696,34.51816011,128.68,128.59,20.0]
[1725762335207,26.74696011,128.68,128.59,20.0]
[1725762335405,10.14156011,128.68,128.59,20.0]
[1725762335589,8.34156011,128.68,128.6,6.0121]
[1725762335797,0.8811063,128.7,128.62,15.7736]
[1725762336424,0.8811063,128.7,128.63,30.39634013]
[1725762337208,0.8811063,128.7,128.64,6.0121]
[1725762337520,0.8811063,128.7,128.65,20.0]
[1725762337907,0.8811063,128.7,128.64,6.0121]
[1725762337908,0.8811063,128.7,128.62,15.7736]
[1725762338107,0.8811063,128.7,128.63,20.0]
[1725762338301,0.8811063,128.7,128.62,15.7736]
[1725762339115,1.94355661,128.69,128.62,15.7736]
[1725762339327,9.71425661,128.69,128.62,15.7736]
[1725762339536,45.0,128.68,128.62,15.7736]
[1725762342620,1.94355502,128.67,128.62,15.7736]
[1725762342831,1.94355502,128.67,128.61,6.0121]
[1725762342832,23.43,128.67,128.61,6.0121]
[1725762342997,45.0,128.66,128.62,20.0]
[1725762343199,68.43,128.68,128.59,15.7736]
[1725762343401,7.7725,128.66,128.59,15.7736]
[1725762343699,45.0,128.65,128.59,15.7736]
[1725762345115,45.0,128.65,128.6,20.0]
[1725762346526,7.7706,128.69,128.6,20.0]
[1725762348006,9.71398091,128.69,128.6,20.0]
[1725762348505,7.7706,128.69,128.6,20.0]
[1725762349201,0.8811063,128.7,128.6,20.0]
[1725762349202,45.0,128.68,128.6,20.0]
[1725762349406,0.8811063,128.7,128.62,6.3938]
[1725762349605,0.8811063,128.7,128.63,20.0]
[1725762349908,2.82417645,128.7,128.63,20.0]
[1725762350226,0.8811063,128.7,128.63,20.0]
[1725762350939,0.8811063,128.7,128.64,15.067]
[1725762351504,0.8811063,128.7,128.65,20.0]
[1725762376242,34.02426031,128.7,128.64,15.067]
[1725762376447,45.0,128.69,128.64,15.067]
[1725762376739,1.94341015,128.68,128.64,15.067]
[1725762376929,1.9434098,128.67,128.64,15.067]
[1725762377125,46.55588055,128.69,128.64,15.067]
[1725762377326,45.0,128.69,128.64,15.067]
[1725762378233,46.9434079,128.69,128.64,15.067]
[1725762378459,45.0,128.69,128.64,15.067]
[1725762379733,46.94340708,128.69,128.64,15.067]
[1725762380358,1.94340695,128.68,128.64,15.067]
[1725762380543,46.94341087,128.69,128.64,15.067]
[1725762380744,45.0,128.69,128.64,15.067]
[1725762383251,1.94309009,128.69,128.64,15.067]
[1725762383455,45.0,128.69,128.64,15.067]
[1725762383870,45.8811063,128.7,128.64,15.067]
[1725762386845,47.82422855,128.7,128.64,15.067]
[1725762387240,45.8811063,128.7,128.64,15.067]
[1725762393142,53.6513063,128.7,128.64,15.067]
[1725762393350,25.37327318,128.69,128.62,6.3938]
[1725762393566,76.2012,128.68,128.62,6.3938]
[1725762393870,45.0,128.67,128.62,6.3938]
[1725762394262,70.37369152,128.67,128.61,15.5454]
[1725762394585,70.37369152,128.67,128.58,22.2162]
[1725762395248,31.2032,128.65,128.58,22.2162]
[1725762395448,45.0,128.64,128.58,22.2162]
[1725762396867,45.0,128.65,128.58,22.2162]
[1725762397053,45.0,128.65,128.59,20.0]
[1725762398550,46.94381165,128.66,128.59,20.0]
[1725762399175,54.71621165,128.66,128.59,20.0]
[1725762401759,7.7731,128.65,128.59,20.0]
[1725762402073,45.0,128.64,128.59,20.0]
[1725762402876,44.5,128.64,128.59,20.0]
[1725762404062,7.7725,128.66,128.59,20.0]
[1725762405051,45.0,128.65,128.59,20.0]
[1725762406050,45.0,128.66,128.59,20.0]
[1725762408270,52.7724,128.66,128.59,20.0]
[1725762408578,52.2724,128.66,128.59,20.0]
[1725762408875,75.7024,128.66,128.59,20.0]
[1725762410582,1.94403554,128.65,128.59,20.0]
[1725762411467,23.43,128.65,128.59,20.0]
[1725762411773,78.14796974,128.64,128.58,16.1417]
[1725762414457,31.2044,128.63,128.55,23.2297]
[1725762414677,46.9445187,128.62,128.56,20.0]
[1725762415376,45.0,128.62,128.56,20.0]
[1725762418088,23.43,128.61,128.56,20.0]
[1725762418378,45.0,128.6,128.56,20.0]
[1725762419278,45.0,128.61,128.56,20.0]
[1725762419477,70.37457693,128.61,128.55,16.5943]
[1725762419658,1.94457693,128.6,128.55,16.5943]
[1725762420479,76.2054,128.61,128.55,16.5943]
[1725762421352,76.2054,128.61,128.52,23.2297]
[1725762421560,31.2068,128.59,128.53,20.0]
[1725762421781,45.0,128.58,128.53,20.0]
[1725762429481,15.4629,128.6,128.53,20.0]
[1725762429664,29.8165,128.61,128.53,20.0]
[1725762429867,23.43,128.62,128.53,20.0]
[1725762430374,15.4629,128.63,128.53,26.4019]
[1725762430687,38.8929,128.63,128.53,26.4019]
[1725762431390,46.6672,128.63,128.53,26.4019]
[1725762431569,45.0,128.62,128.53,26.4019]
[1725762437262,45.0,128.62,128.54,10.39634013]
[1725762437597,31.2031,128.65,128.56,15.1409]
[1725762437973,7.7731,128.65,128.56,15.1409]
[1725762438793,45.0,128.64,128.56,15.1409]
[1725762442272,9.71711219,128.65,128.56,15.1409]
[1725762442475,1.94401219,128.64,128.56,15.1409]
[1725762442881,9.71711591,128.65,128.56,15.1409]
[1725762443586,45.0,128.64,128.56,15.1409]
[1725762443898,46.9440674,128.64,128.56,15.1409]
[1725762445477,45.0,128.64,128.56,15.1409]
[1725762446671,54.32887765,128.64,128.56,15.1409]
[1725762448794,45.0,128.64,128.56,15.1409]
[1725762449100,45.0,128.64,128.57,20.0]
[1725762451282,52.7736,128.64,128.57,20.0]
[1725762451889,76.2036,128.64,128.57,20.0]
[1725762456715,31.2044,128.63,128.57,20.0]
[1725762456880,45.0,128.62,128.57,20.0]
[1725762461185,31.2044,128.63,128.57,20.0]
[1725762461186,23.43,128.66,128.57,20.0]
[1725762461395,23.43,128.65,128.57,20.0]
[1725762462201,31.2031,128.65,128.57,20.0]
[1725762462907,45.0,128.64,128.57,20.0]
[1725762468096,45.0,128.64,128.57,26.1096]
[1725762468714,29.7386,128.67,128.57,36.50594013]
[1725762468892,23.5158,128.67,128.58,17.43731779]
[1725762469096,7.7719,128.67,128.58,17.43731779]
[1725762469403,7.7713,128.68,128.58,16.2715]
[1725762469705,7.7713,128.68,128.59,20.0]
[1725762470595,45.0,128.67,128.59,20.0]
[1725762473017,52.7721,128.67,128.59,20.0]
[1725762473220,78.14590282,128.67,128.59,20.0]
[1725762474898,68.43,128.67,128.59,20.0]
[1725762475921,45.0,128.67,128.59,20.0]
[1725762477413,52.7718,128.67,128.59,20.0]
[1725762482422,33.14621017,128.66,128.59,20.0]
[1725762482644,70.37410448,128.65,128.59,20.0]
[1725762482925,45.0,128.65,128.59,20.0]
[1725762488732,23.43,128.64,128.59,20.0]
[1725762488931,45.0,128.63,128.59,20.0]
[1725762489138,45.0,128.65,128.59,20.0]
[1725762489919,1.94406131,128.64,128.58,16.2715]
[1725762490126,1.94406131,128.64,128.58,14.91691163]
[1725762490127,9.71806131,128.64,128.58,14.91691163]
[1725762490333,52.7743,128.63,128.58,14.91691163]
[1725762490527,1.94434457,128.62,128.58,14.91691163]
[1725762490725,1.94434457,128.62,128.57,6.1096]
[1725762492536,1.94434457,128.62,128.52,6.4641]
[1725762492537,9.71914457,128.62,128.52,6.4641]
[1725762492733,45.0,128.61,128.53,20.0]
[1725762493237,45.0,128.62,128.54,15.1208]
[1725762493440,45.0,128.62,128.55,20.0]
[1725762493842,46.9444741,128.62,128.55,20.0]
[1725762494443,45.0,128.62,128.55,20.0]
[1725762494674,23.43,128.65,128.56,6.4641]
[1725762494819,15.9441,128.66,128.57,35.1208]
[1725762495013,279.2208,128.69,128.57,45.51714013]
[1725762495232,22.5208,128.69,128.58,21.5849]
[1725762495439,15.9441,128.69,128.59,20.0]
[1725762495627,47.1451,128.69,128.59,20.0]
[1725762496442,45.0,128.68,128.59,20.0]
[1725762497035,47.1451,128.69,128.59,20.0]
[1725762497349,31.201,128.69,128.6,15.1208]
[1725762497840,7.771,128.69,128.6,15.1208]
[1725762498026,8.6511063,128.7,128.61,6.4641]
[1725762498238,8.6511063,128.7,128.61,26.4641]
[1725762499240,45.0,128.69,128.61,26.4641]
[1725762500143,0.8811063,128.7,128.62,15.1208]
[1725762500646,0.8811063,128.7,128.63,20.0]
[1725762501927,45.8811063,128.7,128.63,20.0]
[1725762502128,0.8811063,128.7,128.63,20.0]
[1725762502347,0.8811063,128.7,128.64,21.5849]
[1725762505941,0.8811063,128.7,128.65,20.0]
[1725762513956,2.82402527,128.7,128.65,20.0]
[1725762515041,0.8811063,128.7,128.65,20.0]
[1725762518246,0.8811063,128.7,128.64,21.5849]
[1725762518448,0.8811063,128.7,128.65,20.0]
[1725762518645,0.8811063,128.7,128.64,21.5849]
[1725762522661,9.71399686,128.69,128.61,21.9638]
[1725762522870,45.0,128.68,128.62,18.64597428]
[1725762527276,46.94338181,128.68,128.62,18.64597428]
[1725762528379,45.0,128.68,128.62,18.64597428]
[1725762534579,46.94352026,128.68,128.62,18.64597428]
[1725762534776,52.7712,128.68,128.62,18.64597428]
[1725762535481,1.94359178,128.67,128.62,18.64597428]
[1725762535776,32.74889178,128.67,128.58,22.2929]
[1725762535984,45.0,128.66,128.58,22.2929]
[1725762536274,46.55553701,128.66,128.58,22.2929]
[1725762536671,45.0,128.66,128.58,22.2929]
[1725762537174,45.0,128.66,128.59,20.0]
[1725762550781,23.0334,128.67,128.59,20.0]
[1725762552290,45.0,128.66,128.59,20.0]
[1725762563571,17.2458063,128.7,128.61,10.39634013]
[1725762563775,0.8811063,128.7,128.63,26.16504013]
[1725762564077,0.8811063,128.7,128.64,20.0]
[1725762565396,0.8811063,128.7,128.64,26.121]
[1725762567980,0.8811063,128.7,128.65,26.16504013]
[1725762568177,0.8811063,128.7,128.66,20.0]
[1725762590720,0.8811063,128.7,128.6,21.2669]
[1725762591220,1.94338568,128.69,128.6,21.2669]
[1725762592012,9.71418568,128.69,128.6,21.2669]
[1725762592259,45.0,128.68,128.6,21.2669]
[1725762592606,45.0,128.68,128.61,20.0]
[1725762593220,52.7712,128.68,128.6,21.2669]
[1725762593410,45.0,128.68,128.6,21.2669]
[1725762593929,52.7712,128.68,128.6,21.2669]
[1725762594219,52.7712,128.68,128.6,15.1627]
[1725762594721,52.7712,128.68,128.61,20.0]
[1725762595118,9.71562574,128.67,128.57,21.2669]
[1725762595422,45.0,128.66,128.57,21.2669]
[1725762597721,45.0,128.66,128.58,20.0]
[1725762600828,17.93357281,128.65,128.58,20.0]
[1725762601130,46.94402543,128.64,128.58,20.0]
[1725762601631,45.0,128.64,128.58,20.0]
[1725762605330,45.0,128.64,128.58,21.16599713]
[1725762605710,45.0,128.64,128.58,20.0]
[1725762610435,45.0,128.64,128.56,20.0]
[1725762614948,6.3958,128.63,128.54,15.1011]
[1725762615133,61.3807,128.62,128.52,8.5774392]
[1725762615325,1.94443864,128.61,128.52,8.5774392]
[1725762615641,61.3807,128.62,128.5,23.29451254]
[1725762615837,61.3807,128.62,128.52,10.39634013]
[1725762616616,61.3807,128.62,128.53,20.0]
[1725762618333,16.3807,128.62,128.54,10.39634013]
[1725762618636,16.3807,128.62,128.55,20.0]
[1725762619746,45.0,128.61,128.55,20.0]
[1725762620644,8.34174187,128.66,128.6,6.6345]
[1725762620846,0.8811063,128.7,128.64,10.39634013]
[1725762621152,0.8811063,128.7,128.65,20.0]
[1725762622216,0.8811063,128.7,128.65,40.92349965]
[1725762622419,0.8811063,128.7,128.65,20.0]
[1725762622620,0.8811063,128.7,128.62,20.0]
[1725762622816,0.8811063,128.7,128.65,10.39634013]
[1725762623045,0.8811063,128.7,128.66,20.0]
[1725762623751,0.8811063,128.7,128.64,20.0]
[1725762623920,0.8811063,128.7,128.63,20.0]
[1725762627542,0.8811063,128.7,128.59,1.55814168]
[1725762627543,22.7908,128.69,128.61,20.0]
[1725762627743,22.7908,128.69,128.58,1.55814168]
[1725762627744,45.0,128.68,128.58,1.55814168]
[1725762627950,45.0,128.68,128.57,18.08996206]
[1725762629846,45.0,128.68,128.59,10.39634013]
[1725762630455,45.0,128.68,128.6,20.0]
[1725762634253,45.0,128.68,128.58,20.0]
[1725762634759,45.0,128.68,128.59,10.39634013]
[1725762634931,45.0,128.68,128.6,20.0]
[1725762643944,23.006,128.67,128.6,20.0]
[1725762644150,45.0,128.66,128.6,20.0]
[1725762645349,23.006,128.65,128.58,20.0]
[1725762645550,45.0,128.64,128.58,20.0]
[1725762646048,45.0,128.64,128.56,10.39634013]
[1725762646248,45.0,128.64,128.57,20.0]
[1725762649275,45.0,128.64,128.56,10.39634013]
[1725762649775,45.0,128.64,128.57,20.0]
[1725762651151,45.0,128.64,128.57,10.39634013]
[1725762651543,45.0,128.64,128.58,20.0]
[1725762654752,45.0,128.64,128.52,8.13646377]
[1725762654753,16.3829,128.6,128.52,8.13646377]
[1725762654947,16.3829,128.58,128.5,10.39634013]
[1725762655147,16.3829,128.55,128.48,10.39634013]
[1725762655350,45.0,128.54,128.49,0.09]
[1725762655984,45.0,128.54,128.5,10.39634013]
[1725762656468,45.0,128.54,128.51,20.0]
[1725762659077,45.0,128.54,128.5,10.39634013]
[1725762659254,45.0,128.54,128.51,20.0]
[1725762661557,16.3829,128.55,128.52,10.39634013]
[1725762661757,16.3829,128.55,128.53,20.0]
[1725762662355,6.6231,128.56,128.53,20.0]
[1725762662679,45.0,128.55,128.53,20.0]
[1725762663874,16.3829,128.58,128.54,10.9461454]
[1725762664187,16.3829,128.58,128.55,20.0]
[1725762665767,45.0,128.57,128.55,20.0]
[1725762671485,45.0,128.57,128.55,21.16737738]
[1725762671796,45.0,128.57,128.55,20.0]
[1725762671972,16.3829,128.58,128.55,20.0]
[1725762676589,16.3829,128.58,128.5,17.18782929]
[1725762676590,45.0,128.57,128.54,10.39634013]
[1725762678695,45.0,128.57,128.55,20.0]